bitfinex/quotes_BTCUSD_20251226
["timestamp","ask_amount","ask_price","bid_price","bid_amount"]
[1766758502338,0.20520618,88962.0,88957.0,0.01124138]
[1766758502862,0.20520618,88962.0,88958.0,0.01124125]
[1766758503522,0.20520618,88962.0,88956.0,0.01124151]
[1766758504240,0.011241,88960.0,88951.0,0.01124]
[1766758504407,0.000544,88956.0,88951.0,0.02248214]
[1766758504595,0.01124113,88959.0,88951.0,0.02248214]
[1766758505413,0.01124113,88959.0,88951.0,0.01124214]
[1766758505796,0.21644693,88962.0,88951.0,0.06745285]
[1766758505996,0.20520618,88962.0,88955.0,0.01124163]
[1766758506198,0.20520618,88962.0,88956.0,0.01124151]
[1766758506476,0.20520618,88962.0,88957.0,0.01124138]
[1766758507152,0.20520618,88962.0,88957.0,0.06744827]
[1766758507353,0.20520618,88962.0,88957.0,0.01124138]
[1766758507560,0.20520618,88962.0,88956.0,0.01124151]
[1766758507763,0.20520618,88962.0,88957.0,0.01124138]
[1766758507967,0.20520618,88962.0,88956.0,0.01124151]
[1766758508123,0.000544,88957.0,88953.0,0.01124189]
[1766758508525,0.20296088,88961.0,88953.0,0.01124189]
[1766758509460,0.19172,88961.0,88953.0,0.01124189]
[1766758509628,0.19172,88961.0,88954.0,0.05620882]
[1766758509980,0.19172,88961.0,88956.0,0.01124151]
[1766758510129,0.19172,88961.0,88957.0,0.01124138]
[1766758510638,0.07868103,88967.0,88957.0,0.01124138]
[1766758510639,0.01124,88967.0,88959.0,0.06744679]
[1766758510860,0.01124,88967.0,88961.0,0.01124088]
[1766758511039,0.01124,88967.0,88958.0,0.0674471]
[1766758511040,0.000544,88961.0,88958.0,0.0674471]
[1766758511242,0.01348618,88965.0,88959.0,0.01124113]
[1766758511441,0.20520618,88965.0,88959.0,0.01124113]
[1766758511647,0.20520618,88965.0,88957.0,0.01124138]
[1766758511975,0.000544,88959.0,88956.0,0.01124151]
[1766758512147,0.000544,88959.0,88955.0,0.06744944]
[1766758512349,0.01124062,88963.0,88955.0,0.01124163]
[1766758512712,0.19227,88955.0,88949.0,0.01124239]
[1766758512899,0.19172,88955.0,88953.0,0.05620911]
[1766758513478,0.000544,88953.0,88952.0,0.06745177]
[1766758514004,0.19172,88955.0,88952.0,0.06745177]
[1766758514785,0.19172,88955.0,88952.0,0.01124201]
[1766758515099,0.19172,88955.0,88951.0,0.01124214]
[1766758515499,0.19172,88955.0,88950.0,0.01124227]
[1766758515864,0.19172,88955.0,88951.0,0.01124214]
[1766758516275,0.19172,88955.0,88950.0,0.01124227]
[1766758517211,0.19172,88955.0,88951.0,0.01124214]
[1766758517359,0.19172,88955.0,88949.0,0.06749824]
[1766758517555,0.19172,88955.0,88949.0,0.01128681]
[1766758518749,0.00104958,88949.0,88945.0,0.0112429]
[1766758519069,0.01348618,88951.0,88946.0,0.01124277]
[1766758519446,0.01348618,88951.0,88947.0,0.01124265]
[1766758519651,0.01348618,88951.0,88946.0,0.01124277]
[1766758519806,0.01348618,88951.0,88945.0,0.0112429]
[1766758521037,0.19172,88955.0,88947.0,0.05621292]
[1766758521388,0.19172,88955.0,88951.0,0.01129114]
[1766758521735,0.19172,88955.0,88950.0,0.01124227]
[1766758522154,0.19172,88955.0,88951.0,0.01124214]
[1766758522502,0.18859401,88955.0,88952.0,0.01124201]
[1766758522669,0.1862673,88955.0,88952.0,0.06745149]
[1766758522884,0.01124,88959.0,88956.0,0.01124151]
[1766758523257,0.01124,88959.0,88955.0,0.01124163]
[1766758523575,0.19654,88959.0,88954.0,0.01124176]
[1766758525142,0.19654,88959.0,88952.0,0.01124201]
[1766758525343,0.19654,88959.0,88956.0,0.01124151]
[1766758525548,0.19654,88959.0,88955.0,0.01124163]
[1766758526070,0.19654,88959.0,88953.0,0.01124189]
[1766758526275,0.19654,88959.0,88952.0,0.01124201]
[1766758526444,0.19654,88959.0,88953.0,0.01124189]
[1766758527560,0.19654,88959.0,88954.0,0.01124176]
[1766758528343,0.19654,88959.0,88956.0,0.01124151]
[1766758529271,0.19654,88959.0,88955.0,0.01124163]
[1766758529425,0.19654,88959.0,88954.0,0.01124176]
[1766758529603,0.000549,88955.0,88952.0,0.01124201]
[1766758529802,0.20778113,88959.0,88949.0,0.01124239]
[1766758530104,0.01124151,88956.0,88948.0,0.01124252]
[1766758530504,0.01124151,88956.0,88946.0,0.01124277]
[1766758530697,0.25274861,88957.0,88948.0,0.01124252]
[1766758530915,0.25274861,88957.0,88949.0,0.01124239]
[1766758531118,0.19654138,88957.0,88949.0,0.01124239]
[1766758531532,0.19654138,88957.0,88948.0,0.01124252]
[1766758531746,0.01124151,88956.0,88948.0,0.01124252]
[1766758531934,0.19654138,88957.0,88948.0,0.01124252]
[1766758532135,0.19654138,88957.0,88949.0,0.01124239]
[1766758532335,0.1853,88957.0,88950.0,0.01124227]
[1766758532791,0.19654138,88957.0,88949.0,0.01124239]
[1766758533893,0.01124138,88957.0,88949.0,0.01124239]
[1766758534945,0.01124,88959.0,88952.0,0.01124201]
[1766758535154,0.02248113,88959.0,88951.0,0.01124214]
[1766758535446,0.01124,88959.0,88952.0,0.01124201]
[1766758535595,0.01124,88959.0,88951.0,0.01124214]
[1766758536515,0.02248113,88959.0,88951.0,0.01124214]
[1766758536852,0.02248113,88959.0,88950.0,0.06745317]
[1766758537057,0.02248113,88959.0,88951.0,0.01124214]
[1766758537416,0.02248113,88959.0,88950.0,0.06745317]
[1766758537620,0.02248113,88959.0,88951.0,0.01124214]
[1766758537834,0.02248113,88959.0,88950.0,0.01124227]
[1766758538056,0.02248113,88959.0,88951.0,0.01124214]
[1766758538253,0.02248113,88959.0,88950.0,0.01124227]
[1766758538543,0.02248113,88959.0,88951.0,0.01124214]
[1766758539783,0.02248113,88959.0,88950.0,0.01124227]
[1766758540339,0.02248113,88959.0,88949.0,0.06745408]
[1766758540340,0.01124125,88958.0,88949.0,0.01124239]
[1766758540548,0.01124125,88958.0,88950.0,0.01124227]
[1766758540751,0.02248113,88959.0,88949.0,0.01124239]
[1766758540953,0.02248113,88959.0,88950.0,0.01124227]
[1766758541289,0.01124125,88958.0,88950.0,0.01124227]
[1766758541801,0.01124,88959.0,88951.0,0.0674524]
[1766758541989,0.01124125,88958.0,88950.0,0.01124227]
[1766758542350,0.02248113,88959.0,88950.0,0.01124227]
[1766758542894,0.01124125,88958.0,88950.0,0.01124227]
[1766758543042,0.02248113,88959.0,88951.0,0.01124214]
[1766758543843,0.01124,88959.0,88951.0,0.01124214]
[1766758544462,0.01124,88959.0,88952.0,0.01124201]
[1766758544684,0.01124,88959.0,88951.0,0.01124214]
[1766758544936,0.01124,88959.0,88952.0,0.01124201]
[1766758545726,0.01124,88959.0,88950.0,0.01124227]
[1766758545929,0.02248113,88959.0,88951.0,0.01124214]
[1766758546348,0.01124125,88958.0,88951.0,0.01124214]
[1766758546692,0.02248113,88959.0,88950.0,0.01124227]
[1766758546898,0.01124,88959.0,88950.0,0.01124227]
[1766758547098,0.02248113,88959.0,88951.0,0.01124214]
[1766758547608,0.01124125,88958.0,88950.0,0.01124227]
[1766758548134,0.02248113,88959.0,88951.0,0.01124214]
[1766758548648,0.01124,88959.0,88951.0,0.01124214]
[1766758548878,0.01124125,88958.0,88950.0,0.01124227]
[1766758549154,0.02248113,88959.0,88951.0,0.01124214]
[1766758549518,0.01124125,88958.0,88950.0,0.01124227]
[1766758549718,0.02248113,88959.0,88950.0,0.01124227]
[1766758550237,0.02248113,88959.0,88951.0,0.01124214]
[1766758551574,0.02248113,88959.0,88950.0,0.01124227]
[1766758552427,0.01124125,88958.0,88950.0,0.01124227]
[1766758552621,0.02248113,88959.0,88951.0,0.01124214]
[1766758553679,0.01124,88959.0,88952.0,0.01124201]
[1766758553863,0.01124,88959.0,88951.0,0.01124214]
[1766758554631,0.02248113,88959.0,88951.0,0.01124214]
[1766758554834,0.02248113,88959.0,88950.0,0.01124227]
[1766758556061,0.01124125,88958.0,88949.0,0.01124239]
[1766758556264,0.01124125,88958.0,88950.0,0.01124227]
[1766758556469,0.01124138,88957.0,88949.0,0.01124239]
[1766758557025,0.01124125,88958.0,88949.0,0.01124239]
[1766758557504,0.01124,88959.0,88949.0,0.01124239]
[1766758558002,0.01124,88959.0,88952.0,0.06745164]
[1766758558150,0.02248113,88959.0,88950.0,0.01124227]
[1766758558356,0.01124125,88958.0,88950.0,0.01124227]
[1766758558550,0.02248113,88959.0,88951.0,0.01124214]
[1766758559411,0.01124125,88958.0,88950.0,0.01124227]
[1766758559685,0.01124138,88957.0,88948.0,0.01124252]
[1766758560068,0.01124151,88956.0,88948.0,0.01124252]
[1766758560274,0.000549,88948.0,88946.0,0.01124277]
[1766758560496,0.01124163,88955.0,88947.0,0.01124265]
[1766758560865,0.01124163,88955.0,88946.0,0.01124277]
[1766758560866,0.01124176,88954.0,88945.0,0.0112429]
[1766758561208,0.01124151,88956.0,88947.0,0.01124265]
[1766758561376,0.01124176,88954.0,88943.0,0.01124315]
[1766758561712,0.01124176,88954.0,88942.0,0.05621601]
[1766758561713,0.01124214,88951.0,88944.0,0.01124]
[1766758562060,0.01124201,88952.0,88944.0,0.02248302]
[1766758562376,0.01348618,88951.0,88946.0,0.01124277]
[1766758562558,0.01348618,88951.0,88947.0,0.01124265]
[1766758563608,0.01348618,88951.0,88948.0,0.01124252]
[1766758564009,0.01348618,88951.0,88947.0,0.01124265]
[1766758565288,0.01348618,88951.0,88946.0,0.01124277]
[1766758566079,0.01348618,88951.0,88945.0,0.0112429]
[1766758566279,0.01348618,88951.0,88947.0,0.01124265]
[1766758566746,0.01348618,88951.0,88945.0,0.0112429]
[1766758567185,0.01348618,88951.0,88946.0,0.01124277]
[1766758567388,0.01348618,88951.0,88945.0,0.0112429]
[1766758567742,0.01348618,88951.0,88946.0,0.01124277]
[1766758568094,0.01348618,88951.0,88947.0,0.01124265]
[1766758569102,0.01348618,88951.0,88948.0,0.01124252]
[1766758570425,0.01348618,88951.0,88947.0,0.01124265]
[1766758570735,0.01348618,88951.0,88946.0,0.01124277]
[1766758571149,0.01348618,88951.0,88947.0,0.01124265]
[1766758571470,0.000549,88947.0,88946.0,0.01124277]
[1766758571794,0.01348618,88951.0,88947.0,0.01124265]
[1766758572247,0.01348618,88951.0,88946.0,0.01124277]
[1766758572407,0.01348618,88951.0,88947.0,0.01124265]
[1766758572614,0.01335014,88951.0,88947.0,0.01124265]
[1766758572972,0.01335014,88951.0,88948.0,0.01124252]
[1766758576418,0.01335014,88951.0,88947.0,0.01124265]
[1766758576652,0.01335014,88951.0,88948.0,0.01124252]
[1766758577558,0.01235014,88951.0,88948.0,0.01124252]
[1766758577856,0.01235014,88951.0,88947.0,0.01124265]
[1766758578264,0.000549,88947.0,88940.0,0.43414926]
[1766758578465,0.01124239,88949.0,88942.0,0.01421892]
[1766758579347,0.01124252,88948.0,88942.0,0.01421892]
[1766758579758,0.01124239,88949.0,88942.0,0.01421892]
[1766758580478,0.01124227,88950.0,88942.0,0.0254622]
[1766758580685,0.01124239,88949.0,88942.0,0.01421892]
[1766758580858,0.01124239,88949.0,88942.0,0.0254622]
[1766758581062,0.01124239,88949.0,88942.0,0.01421892]
[1766758581648,0.01124252,88948.0,88942.0,0.01421892]
[1766758581853,0.01124239,88949.0,88942.0,0.01421892]
[1766758582490,0.01124227,88950.0,88942.0,0.0254622]
[1766758582693,0.01124239,88949.0,88942.0,0.01421892]
[1766758583070,0.01124252,88948.0,88942.0,0.01421892]
[1766758583575,0.01124239,88949.0,88942.0,0.01421892]
[1766758584922,0.01124252,88948.0,88942.0,0.01421892]
[1766758585677,0.0112429,88945.0,88942.0,0.01421892]
[1766758586277,0.0112429,88945.0,88936.0,0.01124404]
[1766758586483,0.01124302,88944.0,88936.0,0.01128852]
[1766758586692,0.01124315,88943.0,88936.0,4.448e-05]
[1766758587693,0.01348618,88937.0,88936.0,4.8e-07]
[1766758589091,0.01344218,88937.0,88936.0,4.8e-07]
[1766758589294,0.01124151,88956.0,88945.0,0.0112429]
[1766758589488,0.01348618,88951.0,88944.0,0.01124302]
[1766758589715,0.01124467,88950.0,88945.0,0.0112429]
[1766758589916,0.01348618,88951.0,88946.0,0.01124277]
[1766758590115,0.01348618,88951.0,88945.0,0.0112429]
[1766758590321,0.01293618,88950.0,88946.0,0.01124277]
[1766758590549,0.01124,88955.0,88947.0,0.01124265]
[1766758590750,0.01348618,88950.0,88947.0,0.01124265]
[1766758591454,0.01348618,88950.0,88947.0,0.06745546]
[1766758591957,0.01348618,88950.0,88948.0,0.05621229]
[1766758598404,0.01348618,88950.0,88947.0,0.01124265]
[1766758599012,0.01348618,88950.0,88948.0,0.05621261]
[1766758600463,0.01348618,88950.0,88947.0,0.01124265]
[1766758601997,0.01348618,88950.0,88947.0,0.06745541]
[1766758603716,0.01348618,88950.0,88948.0,0.05621228]
[1766758604093,0.01348618,88950.0,88947.0,0.01124265]
[1766758605122,0.01348618,88950.0,88947.0,0.01069365]
[1766758605637,0.01348618,88950.0,88946.0,0.01124277]
[1766758607846,0.01348618,88950.0,88947.0,0.06745556]
[1766758609224,0.19556,88954.0,88950.0,0.01124227]
[1766758609424,0.01348618,88951.0,88950.0,0.01124227]
[1766758612964,0.19777,88956.0,88954.0,0.01124176]
[1766758613158,0.01348618,88955.0,88952.0,0.06745204]
[1766758613778,0.01348618,88955.0,88952.0,0.01124201]
[1766758615017,0.01348618,88955.0,88952.0,0.06745178]
[1766758617106,0.01348618,88955.0,88953.0,0.05620917]
[1766758618073,0.01348618,88955.0,88947.0,0.01124265]
[1766758618275,0.01348618,88955.0,88946.0,0.01124277]
[1766758618472,0.20001618,88955.0,88948.0,0.01124252]
[1766758619085,0.20001618,88955.0,88950.0,0.01124227]
[1766758619427,0.20001618,88955.0,88949.0,0.01124239]
[1766758619596,0.00055,88949.0,88947.0,0.01124265]
[1766758619803,0.20001618,88955.0,88948.0,0.01124252]
[1766758620032,0.20001618,88955.0,88947.0,0.01124265]
[1766758620435,0.20001618,88955.0,88948.0,0.01124252]
[1766758621272,0.20001618,88955.0,88947.0,0.01124265]
[1766758621571,0.20001618,88955.0,88948.0,0.01124252]
[1766758621774,0.20001618,88955.0,88949.0,0.01124239]
[1766758622346,0.20001618,88955.0,88950.0,0.01124227]
[1766758622527,0.20001618,88955.0,88949.0,0.01124239]
[1766758622731,0.20001618,88955.0,88948.0,0.01124252]
[1766758623019,0.20001618,88955.0,88949.0,0.01124239]
[1766758623165,0.20001618,88955.0,88948.0,0.01124252]
[1766758623545,0.20001618,88955.0,88947.0,0.05621292]
[1766758623975,0.20001618,88955.0,88951.0,0.01124214]
[1766758625082,0.20001618,88955.0,88952.0,0.01124201]
[1766758625266,0.20001618,88955.0,88951.0,0.01124214]
[1766758626378,0.20001618,88955.0,88952.0,0.01124201]
[1766758626585,0.20001618,88955.0,88949.0,0.01124239]
[1766758626987,0.20001618,88955.0,88950.0,0.01124227]
[1766758627326,0.20001618,88955.0,88951.0,0.01124214]
[1766758627901,0.01348618,88955.0,88951.0,0.01124214]
[1766758628795,0.01348618,88955.0,88952.0,0.01124201]
[1766758628997,0.01348618,88955.0,88951.0,0.01124214]
[1766758629222,0.01348618,88955.0,88950.0,0.01124227]
[1766758629437,0.01348618,88955.0,88951.0,0.01124214]
[1766758629863,0.01348618,88955.0,88949.0,0.01124239]
[1766758630093,0.01348618,88955.0,88950.0,0.01124227]
[1766758630432,0.01348618,88955.0,88948.0,0.06745509]
[1766758630635,0.01348618,88955.0,88949.0,0.01124239]
[1766758631536,0.01348618,88955.0,88950.0,0.01124227]
[1766758633103,0.01348618,88955.0,88949.0,0.01124239]
[1766758633864,0.01348618,88955.0,88950.0,0.01124227]
[1766758635266,0.01348618,88955.0,88949.0,0.01124239]
[1766758635678,0.01348618,88955.0,88947.0,0.01124265]
[1766758636235,0.02472781,88955.0,88947.0,0.01124265]
[1766758636688,0.01348618,88955.0,88948.0,0.01124252]
[1766758636868,0.01348618,88955.0,88949.0,0.01124239]
[1766758637069,0.01348618,88955.0,88950.0,0.01124227]
[1766758637269,0.01348618,88955.0,88949.0,0.01124239]
[1766758637679,0.01348618,88955.0,88950.0,0.01124227]
[1766758638215,0.01348618,88955.0,88949.0,0.01124239]
[1766758639151,0.01348618,88955.0,88948.0,0.01124252]
[1766758639788,0.01348618,88955.0,88949.0,0.01124239]
[1766758639986,0.01348618,88955.0,88950.0,0.01124227]
[1766758640191,0.01348618,88955.0,88949.0,0.01124239]
[1766758640406,0.01348618,88955.0,88950.0,0.01124227]
[1766758640763,0.01348618,88955.0,88951.0,0.01124214]
[1766758641009,0.01348618,88955.0,88950.0,0.01124227]
[1766758641210,0.00055,88950.0,88946.0,0.01124277]
[1766758641413,0.00055,88950.0,88947.0,0.01124265]
[1766758641575,0.02472781,88955.0,88946.0,0.01124277]
[1766758641782,0.02472781,88955.0,88947.0,0.01124265]
[1766758642518,0.01124176,88954.0,88946.0,0.01124277]
[1766758642728,0.02472781,88955.0,88947.0,0.01124265]
[1766758643471,0.01124176,88954.0,88946.0,0.01124277]
[1766758643671,0.01348618,88955.0,88947.0,0.01124265]
[1766758643907,0.01124176,88954.0,88946.0,0.01124277]
[1766758644994,0.01124176,88954.0,88947.0,0.01124265]
[1766758645200,0.01124176,88954.0,88946.0,0.01124277]
[1766758645392,0.01124189,88953.0,88945.0,0.06745711]
[1766758645727,0.01124201,88952.0,88944.0,0.01124302]
[1766758645943,0.01124189,88953.0,88944.0,0.01124302]
[1766758646244,0.01124201,88952.0,88944.0,0.01124302]
[1766758646625,0.01124214,88951.0,88943.0,0.01124315]
[1766758646941,0.01124214,88951.0,88941.0,0.0112434]
[1766758647758,0.01124201,88952.0,88942.0,0.01124328]
[1766758648038,0.01124214,88951.0,88941.0,0.0112434]
[1766758648191,0.01124227,88950.0,88942.0,0.01124328]
[1766758648391,0.01124227,88950.0,88943.0,0.01124315]
[1766758648945,0.01124201,88952.0,88944.0,0.01124302]
[1766758649110,0.01124189,88953.0,88945.0,0.0112429]
[1766758649710,0.01124189,88953.0,88943.0,0.01124315]
[1766758649711,0.01124201,88952.0,88943.0,0.01124315]
[1766758650144,0.01124201,88952.0,88944.0,0.01124302]
[1766758650358,0.01124201,88952.0,88945.0,0.0112429]
[1766758650543,0.01124201,88952.0,88944.0,0.01124302]
[1766758650725,0.01124189,88953.0,88945.0,0.0112429]
[1766758651251,0.02248516,88954.0,88946.0,0.01124277]
[1766758651769,0.0112434,88954.0,88946.0,0.01124277]
[1766758652103,0.02248516,88954.0,88946.0,0.01124277]
[1766758652303,0.01124189,88953.0,88944.0,0.01124302]
[1766758652440,0.02248516,88954.0,88946.0,0.01124277]
[1766758652843,0.02248516,88954.0,88947.0,0.01124265]
[1766758653142,0.0112434,88954.0,88946.0,0.01124277]
[1766758653358,0.02248516,88954.0,88947.0,0.01124265]
[1766758653579,0.0112434,88954.0,88947.0,0.01124265]
[1766758653962,0.49033717,88960.0,88944.0,0.01124302]
[1766758653963,0.04028893,88973.0,88954.0,0.000549]
[1766758654182,0.00586652,88990.0,88948.0,0.01181511]
[1766758654183,0.01896491,88977.0,88975.0,0.01123911]
[1766758654405,0.01896491,88977.0,88955.0,0.01181499]
[1766758654406,0.00586652,88990.0,88987.0,0.01123759]
[1766758654620,0.02472226,88999.0,88987.0,0.01123759]
[1766758654621,0.03373305,88997.0,88990.0,0.01123721]
[1766758654842,0.03775335,88999.0,88993.0,0.01123683]
[1766758654843,0.01348618,88999.0,88993.0,0.01123683]
[1766758655079,0.01348618,88999.0,88990.0,0.05618608]
[1766758655080,0.01348618,88999.0,88990.0,0.01123721]
[1766758655299,0.01348618,88995.0,88992.0,0.01123696]
[1766758655709,0.01348618,88995.0,88991.0,0.01123709]
[1766758656133,0.01348618,88995.0,88992.0,0.01348618]
[1766758656581,0.01384605,88999.0,88996.0,0.01123646]
[1766758656787,0.22467761,89017.0,88993.0,0.01123683]
[1766758656788,0.01123418,89014.0,89004.0,0.01123545]
[1766758657011,0.01134789,89014.0,89008.0,0.01123494]
[1766758657241,0.00010789,89014.0,89011.0,0.01123456]
[1766758657435,0.000549,89011.0,89008.0,0.01123494]
[1766758657707,0.000549,89011.0,89007.0,0.03595821]
[1766758657869,0.000549,89011.0,89006.0,0.01123519]
[1766758658063,0.01134207,89014.0,89005.0,0.03595543]
[1766758658306,0.00010789,89014.0,89005.0,0.03595543]
[1766758658547,0.00010789,89014.0,89007.0,0.01123507]
[1766758658766,0.00010789,89014.0,89006.0,0.06741115]
[1766758658767,0.00010789,89014.0,89006.0,0.01123519]
[1766758658979,0.00010789,89014.0,89007.0,0.01123507]
[1766758659410,0.000549,89007.0,89005.0,0.03595543]
[1766758659626,0.01134207,89014.0,89005.0,0.03595543]
[1766758659627,0.00010789,89014.0,89009.0,0.01123481]
[1766758659836,0.00010789,89014.0,89013.0,0.05617157]
[1766758660043,0.00010789,89014.0,89011.0,0.01123456]
[1766758660044,0.00010789,89014.0,89011.0,0.06740715]
[1766758660256,0.00010789,89014.0,89011.0,0.01123456]
[1766758660687,0.000549,89011.0,89006.0,0.01123519]
[1766758660878,0.01134207,89014.0,89005.0,0.01123532]
[1766758661019,0.00010789,89014.0,89005.0,0.01123532]
[1766758661216,0.00010789,89014.0,89004.0,0.08090322]
[1766758661217,0.00010789,89014.0,89008.0,0.01123494]
[1766758661840,0.00010789,89014.0,89006.0,0.01123519]
[1766758662005,0.000549,89008.0,89006.0,0.01123519]
[1766758662207,0.000549,89008.0,89005.0,0.01123532]
[1766758662427,0.01123444,89012.0,89004.0,0.03596163]
[1766758662925,0.01123444,89012.0,89001.0,0.06741468]
[1766758662926,0.00055,89004.0,88997.0,0.01123633]
[1766758663127,0.01348618,89002.0,89000.0,0.01123444]
[1766758663911,0.01348618,89002.0,89000.0,0.06741408]
[1766758664332,0.01348618,89002.0,89000.0,0.01123444]
[1766758664866,0.01348618,89002.0,89001.0,0.01124]
[1766758666786,0.01348618,89002.0,89000.0,0.01123444]
[1766758666997,0.00055,89000.0,88999.0,0.01124]
[1766758667193,0.01348618,89002.0,88999.0,0.01124]
[1766758667647,0.02472188,89002.0,88999.0,0.01124]
[1766758668071,0.02472188,89002.0,88999.0,0.01069]
[1766758668274,0.01123595,89000.0,88995.0,0.01348618]
[1766758668492,0.01123658,88995.0,88987.0,0.01123759]
[1766758668669,0.01123658,88995.0,88985.0,0.01124]
[1766758668898,0.01123658,88995.0,88986.0,0.01123772]
[1766758669077,0.01348618,88988.0,88981.0,0.01123835]
[1766758669279,0.01348618,88988.0,88970.0,0.04496]
[1766758669280,0.01348618,89025.0,88988.0,0.000549]
[1766758669524,0.01348618,89025.0,89010.0,0.01123469]
[1766758669525,8.9e-07,89014.0,89010.0,0.01123469]
[1766758669702,8.9e-07,89014.0,89011.0,0.01123456]
[1766758670302,8.9e-07,89014.0,89010.0,0.01123469]
[1766758671088,8.9e-07,89014.0,89011.0,0.01123456]
[1766758672076,0.01124,89020.0,89013.0,0.01123431]
[1766758672271,0.01124,89020.0,89015.0,0.0106252]
[1766758672514,0.00211144,89020.0,89015.0,0.0106252]
[1766758672713,0.0106729,89021.0,89016.0,0.01123393]
[1766758672925,0.0106729,89021.0,89014.0,0.01123418]
[1766758673634,0.02247317,89022.0,89014.0,0.01123418]
[1766758674194,0.02247317,89022.0,89012.0,0.06740606]
[1766758674195,0.02247317,89022.0,89013.0,0.01123431]
[1766758674394,0.02247317,89022.0,89014.0,0.01123418]
[1766758674820,0.0112333,89021.0,89013.0,0.01123431]
[1766758676208,0.02247317,89022.0,89013.0,0.01123431]
[1766758676417,0.0112333,89021.0,89013.0,0.01123431]
[1766758676624,0.01123343,89020.0,89011.0,0.01123456]
[1766758676881,0.01123355,89019.0,89011.0,0.01123456]
[1766758677023,0.01123343,89020.0,89012.0,0.01123444]
[1766758677356,0.01123355,89019.0,89011.0,0.01123456]
[1766758677725,0.01123355,89019.0,89010.0,0.01123469]
[1766758677918,0.01123343,89020.0,89012.0,0.01123444]
[1766758678125,0.0112338,89017.0,89009.0,0.01123481]
[1766758678324,0.01123368,89018.0,89010.0,0.01123469]
[1766758678710,0.01123355,89019.0,89011.0,0.01123456]
[1766758682174,0.01123355,89019.0,89009.0,0.01123481]
[1766758682175,0.06740133,89019.0,89009.0,0.01123481]
[1766758682480,0.01123355,89019.0,89011.0,0.01123456]
[1766758682698,0.0112338,89017.0,89009.0,0.01123481]
[1766758682878,0.01123368,89018.0,89010.0,0.01123469]
[1766758684246,0.01123368,89018.0,89005.0,0.06741138]
[1766758684247,0.000107,89010.0,88999.0,0.01123608]
[1766758684406,0.01123481,89009.0,89004.0,0.03372213]
[1766758684609,0.01123545,89004.0,88995.0,0.02082933]
[1766758684809,0.01348618,88997.0,88996.0,0.01123646]
[1766758685111,0.01249418,88997.0,88996.0,0.01123646]
[1766758685691,0.01249418,88997.0,88995.0,0.07352579]
[1766758686763,0.17372418,89001.0,88997.0,0.01123633]
[1766758686959,0.17372418,89001.0,88997.0,0.01068733]
[1766758687199,0.17372418,89001.0,88996.0,0.01123646]
[1766758687400,0.01348618,88997.0,88994.0,0.01348618]
[1766758687605,0.00055,88996.0,88994.0,0.08090591]
[1766758688073,0.01348618,88997.0,88996.0,0.0561823]
[1766758688950,0.01293718,88997.0,88996.0,0.0561823]
[1766758689640,0.19623,88994.0,88988.0,0.01123747]
[1766758689798,0.19623,88994.0,88989.0,0.01123734]
[1766758690138,0.19623,88994.0,88988.0,4.29e-06]
[1766758690337,0.19623,88994.0,88988.0,0.01124176]
[1766758691308,0.19623,88994.0,88989.0,0.01123734]
[1766758691697,0.19623,88994.0,88988.0,4.29e-06]
[1766758692323,0.20746671,88994.0,88988.0,4.29e-06]
[1766758692736,0.01123683,88993.0,88988.0,4.29e-06]
[1766758693379,0.01123696,88992.0,88988.0,4.29e-06]
[1766758694946,0.20746671,88994.0,88988.0,4.29e-06]
[1766758695383,0.19623,88994.0,88988.0,4.29e-06]
[1766758695586,0.20746671,88994.0,88988.0,4.29e-06]
[1766758696347,0.01123683,88993.0,88988.0,4.29e-06]
[1766758696457,0.20746671,88994.0,88988.0,4.29e-06]
[1766758696669,0.01123696,88992.0,88988.0,4.29e-06]
[1766758697084,0.01123683,88993.0,88988.0,4.29e-06]
[1766758698524,0.20746671,88994.0,88988.0,4.29e-06]
[1766758699492,0.19623,88994.0,88988.0,4.29e-06]
[1766758699700,0.20746671,88994.0,88988.0,4.29e-06]
[1766758700023,0.19623,88994.0,88988.0,4.29e-06]
[1766758700226,0.00023197,88989.0,88988.0,4.29e-06]
[1766758702859,0.00023197,88989.0,88981.0,0.05619141]
[1766758702860,0.0112381,88983.0,88954.0,0.18464]
[1766758703069,0.19809,88985.0,88972.0,0.01123949]
[1766758703070,0.44728029,88980.0,88972.0,0.01123949]
[1766758703268,0.01348618,88980.0,88972.0,0.06743635]
[1766758703435,0.01348618,88980.0,88972.0,0.01123949]
[1766758703635,0.04721957,88980.0,88973.0,0.01123936]
[1766758704335,0.04721957,88980.0,88972.0,0.01123949]
[1766758704534,0.01348618,88980.0,88973.0,0.01123936]
[1766758704734,0.01348618,88980.0,88972.0,0.01123949]
[1766758705340,0.01348618,88980.0,88972.0,0.06743646]
[1766758705541,0.01348618,88980.0,88972.0,0.01123949]
[1766758705875,0.00202039,88980.0,88976.0,0.01123898]
[1766758706191,0.00202039,88980.0,88975.0,0.01123911]
[1766758706474,0.00202039,88980.0,88974.0,0.01123923]
[1766758706976,0.00202039,88980.0,88973.0,0.01123936]
[1766758707334,0.00202039,88980.0,88974.0,0.01123923]
[1766758707736,0.00202039,88980.0,88973.0,0.01123936]
[1766758708158,0.00202039,88980.0,88974.0,0.01123923]
[1766758708375,0.00202039,88980.0,88973.0,0.01123936]
[1766758709989,0.00202039,88980.0,88972.0,0.19587949]
[1766758710356,0.01325887,88980.0,88972.0,0.18464]
[1766758710562,0.01325887,88980.0,88972.0,0.19587949]
[1766758710903,0.01325887,88980.0,88972.0,0.18464]
[1766758711667,0.0112386,88979.0,88972.0,0.18464]
[1766758712722,0.01325887,88980.0,88972.0,0.19587949]
[1766758713984,0.00202039,88980.0,88972.0,0.19587949]
[1766758714387,0.00202039,88980.0,88973.0,0.01123936]
[1766758714597,0.00202039,88980.0,88972.0,0.19587949]
[1766758714796,0.00202039,88980.0,88973.0,0.01123936]
[1766758715129,0.00202039,88980.0,88974.0,0.01123923]
[1766758715340,0.00202039,88980.0,88973.0,0.01123936]
[1766758715696,0.00202039,88980.0,88974.0,0.01123923]
[1766758716738,0.00202039,88980.0,88973.0,0.01123936]
[1766758716885,0.00202039,88980.0,88974.0,0.01123923]
[1766758719444,0.01348618,88982.0,88975.0,0.01123911]
[1766758719799,0.01348618,88982.0,88976.0,0.01123898]
[1766758720961,0.01348618,88982.0,88975.0,0.01123911]
[1766758721133,0.01348618,88982.0,88976.0,0.01123898]
[1766758722021,0.01348618,88982.0,88975.0,0.01123911]
[1766758722270,0.01348618,88982.0,88976.0,0.01123898]
[1766758722473,0.01348618,88982.0,88975.0,0.01123911]
[1766758723537,0.01348618,88982.0,88976.0,0.01123898]
[1766758723869,0.01348618,88982.0,88975.0,0.01123911]
[1766758724641,0.01348618,88982.0,88976.0,0.01123898]
[1766758725683,0.01348618,88982.0,88975.0,0.01123911]
[1766758733956,0.0247244,88982.0,88974.0,0.01123923]
[1766758734374,0.01123835,88981.0,88971.0,0.07867768]
[1766758734579,0.01123848,88980.0,88971.0,0.07867768]
[1766758734743,0.01123848,88980.0,88969.0,0.06743915]
[1766758734744,0.01123873,88978.0,88972.0,0.010691]
[1766758735252,0.01123835,88981.0,88972.0,0.010691]
[1766758735459,0.01123835,88981.0,88973.0,0.01123936]